Cogmind - Beta 10.2 @@@ ROGUE MODE // 2021.01.06 @ 05:54:32 Player: Espresso Result: Destroyed by L-41 Fighter with Axe Performance ------------- Evolutions (3) 1500 Regions Visited (8) 1600 Robots Destroyed (66) 330 Value Destroyed (1803) 1803 Prototype IDs (5) 100 Alien Tech Used (0) 0 Bonus (0) 0 TOTAL SCORE: 5333 Bonus ------- None Cogmind --------- Core Integrity 0/700 Matter 184/300 Energy 99/100 System Corruption 8% Temperature Cool (0) Movement Core (50) Location -7/Lower Caves Parts ------- > --- POWER (1) -------- (None) > --- PROPULSION (3) --- (None) > --- UTILITY (5) ------ (None) > --- WEAPON (4) ------- (None) > --- INVENTORY (4) ---- Enhanced Autogun Peak State ------------ > --- POWER ------------ Light Angular Momentum Engine > --- PROPULSION ------- Light Treads Armored Treads Armored Treads > --- UTILITY ---------- Coolant Injector High-capacity Storage Unit High-capacity Storage Unit Cloaking Device Improved Light Armor Plating > --- WEAPON ----------- Light Assault Rifle Assault Cannon Gauss Cannon > --- INVENTORY -------- Heavy Ion Engine Heavy Ion Engine Heavy Ion Engine Light Deuterium Engine Light Nuclear Core Light Treads Light Treads Airjet Airjet Airjet Aerolev Unit Aerolev Unit Advanced Targeting Computer Recoil Stabilizer Recoil Stabilizer Recoil Stabilizer Weapon Cycler [Rating: 39] Favorites ----------- Power Reinforced Deuterium Engine Engine Reinforced Deuterium Engine Power Core Light Nuclear Core Propulsion Light Treads Treads Light Treads Wheel Armored Wheel Hover Unit Improved Hover Unit Flight Unit VTOL Module Utility High-capacity Storage Unit Device Shield Generator Storage High-capacity Storage Unit Processor Targeting Computer Protection Improved Light Armor Plating Weapon Light Assault Rifle Energy Gun Medium Laser Energy Cannon Beam Cannon Ballistic Gun Light Assault Rifle Ballistic Cannon Assault Cannon Launcher Grenade Launcher Build | -11 -10 -10 -9 -8 -7 -7 -7 -7 ------- Run | Scr Mat Min Mat Mat Fac Was Fac Low Slots Evolved 6 | . . . 2 2 2 . . . Power . | . . . . . . . . . Propulsion 1 | . . . . 1 . . . . Utility 3 | . . . 1 1 1 . . . Weapon 2 | . . . 1 . 1 . . . Parts Attached 107 | 6 2 2 20 41 14 . 19 3 Power 14 | 1 . 1 1 5 2 . 4 . Engine 10 | 1 . 1 1 2 2 . 3 . Core 4 | . . . . 3 . . 1 . Reactor . | . . . . . . . . . Propulsion 39 | 2 . 1 8 18 3 . 6 1 Treads 15 | 2 . 1 2 4 3 . 3 . Leg . | . . . . . . . . . Wheel 3 | . . . . 3 . . . . Hover 17 | . . . 6 8 . . 3 . Flight 4 | . . . . 3 . . . 1 Utility 22 | 1 1 . 5 3 6 . 6 . Device 13 | . 1 . . 2 4 . 6 . Storage 4 | 1 . . 1 1 1 . . . Processor 2 | . . . 2 . . . . . Hackware . | . . . . . . . . . Protection 3 | . . . 2 . 1 . . . Artifact . | . . . . . . . . . Weapon 32 | 2 1 . 6 15 3 . 3 2 Energy Gun 12 | 2 . . 2 7 . . 1 . Energy Cannon 2 | . 1 . . . . . 1 . Ballistic Gun 13 | . . . 1 7 2 . 1 2 Ballistic Cannon 4 | . . . 2 1 1 . . . Launcher 1 | . . . 1 . . . . . Special Weapon . | . . . . . . . . . Impact Weapon . | . . . . . . . . . Slashing Weapon . | . . . . . . . . . Piercing Weapon . | . . . . . . . . . Special Melee Weapon . | . . . . . . . . . Unidentified Prototypes 5 | . . . . 4 . . 1 . Parts Lost 29 | . . . 6 1 . . 16 6 Power 3 | . . . . . . . 2 1 Propulsion 10 | . . . 1 . . . 5 4 Utility 6 | . . . 1 . . . 5 . Weapon 10 | . . . 4 1 . . 4 1 Highest Loss Streak 9 | . . . 3 1 . . 9 4 Average Slot Usage (%) 87 | . 88 100 85 96 99 100 79 14 Engine 7 | . 14 14 10 3 6 7 6 1 Treads 16 | . 28 28 10 3 23 23 18 . Wheel 2 | . . . . 14 . . . . Hover 2 | . . . 10 7 . . . 3 Device 11 | . 3 14 . 15 14 15 14 . Storage 12 | . 14 14 11 9 14 15 13 . Processor 4 | . . . 12 9 4 . . . Protection 3 | . . . 7 2 2 7 4 . Energy Gun 4 | . 18 14 8 10 . . . . Energy Cannon 2 | . 9 14 3 . . . . . Ballistic Gun 8 | . . . . 11 16 15 6 7 Ballistic Cannon 7 | . . . 5 2 13 15 11 . Naked Turns 74 | . . . . . . . 53 21 Heaviest Build 101 | 13 15 17 25 52 101 101 101 11 Greatest Support 60 | 40 40 40 40 60 60 60 60 29 Greatest Overweight (x) 4 | . . . 4 4 1 1 4 1 Average Overweight (x) . | . . . . . . 1 . . Largest Inventory Capacity 20 | 6 6 6 8 12 20 20 20 4 Average Capacity 13 | 5 6 6 6 10 19 20 18 4 Most Carried 20 | . 5 6 8 12 20 20 20 1 Average Carried 11 | . 2 5 5 9 15 20 15 . Final Capacity 20 | 6 6 6 8 12 20 20 4 4 Final Carried 20 | . 5 6 8 11 20 20 1 1 Class Distribution -------------------- 35% | Mutant 23% | Hauler-Mutant 11% | Hauler-Tank 11% | Scavenger-Gunner 11% | Hauler-Gunner 3% | Scavenger-Mutant Dominant Class ---------------- Mutant | -10/Materials Mutant | -10/Mines Mutant | -9/Materials Scavenger-Gunner | -8/Materials Hauler-Gunner | -7/Factory Hauler-Mutant | -7/Waste Hauler-Mutant | -7/Factory Mutant | -7/Lower Caves Resources | -11 -10 -10 -9 -8 -7 -7 -7 -7 ----------- Run | Scr Mat Min Mat Mat Fac Was Fac Low Matter Collected 2306 | . 104 105 267 764 297 273 372 124 Remotely 602 | . . . . . 105 273 224 . Salvage Created 2553 | . 104 . 337 1037 494 . 487 94 Parts 128 | . 3 . 16 54 21 . 26 8 Haulers Intercepted 5 | . . . 1 3 1 . . . Recyclers Shooed 9 | . . . 1 2 3 . 3 . Parts Field Recycled . | . . . . . . . . . Retrieved Matter . | . . . . . . . . . Parts Self-Destructed 6 | . . . . . . . . 6 Prevented . | . . . . . . . . . Kills | -11 -10 -10 -9 -8 -7 -7 -7 -7 ------- Run | Scr Mat Min Mat Mat Fac Was Fac Low Combat Hostiles Destroyed 44 | . 2 . 6 15 8 . 9 4 Guns 25 | . . . 4 14 3 . . 4 Cannons 17 | . 2 . 1 . 5 . 9 . AOE 1 | . . . 1 . . . . . Classes Destroyed 12 | . 1 . 4 5 1 . 1 . Worker 4 | . . . . 1 . . 3 . Builder 1 | . . . . . . . 1 . Tunneler 1 | . . . . 1 . . . . Hauler 5 | . . . 1 3 1 . . . Recycler 10 | . . . 1 3 3 . 3 . Watcher 1 | . . . . 1 . . . . Swarmer 13 | . . . . 7 2 . . 4 Grunt 22 | . 2 . 4 5 3 . 8 . Brawler 2 | . . . 1 . 1 . . . Sentry 5 | . . . 1 2 1 . 1 . Hunter 1 | . . . . 1 . . . . Programmer 1 | . . . . . 1 . . . Best Kill Streak 13 | . 2 . 3 10 5 . 13 4 Combat Bots Only 5 | . 2 . 2 5 3 . 3 4 Max Kills in Single Turn 2 | . 1 . 1 2 2 . 2 1 Gunslinging . | . . . . . . . . . Exploded 1 | . . . 1 . . . . . Melee . | . . . . . . . . . Uniques/NPCs Destroyed . | . . . . . . . . . Combat | -11 -10 -10 -9 -8 -7 -7 -7 -7 -------- Run | Scr Mat Min Mat Mat Fac Was Fac Low Damage Taken 5001 | . 105 . 828 949 397 . 2040 682 Core 1150 | . 13 . 196 208 60 . 428 245 Absorbed by Shields 559 | . . . . 244 122 . 193 . Core Remaining (%) 76 | 100 . 94 51 62 . . . . Volleys Fired 237 | . 5 1 41 75 30 . 66 19 Largest 4 | . 2 2 2 3 4 . 3 1 Hottest 150 | . 110 110 110 150 137 . 118 25 Shots Fired 493 | . 10 2 52 169 107 . 133 20 Gun 320 | . 5 1 32 163 59 . 40 20 Cannon 171 | . 5 1 18 6 48 . 93 . Launcher 2 | . . . 2 . . . . . Special . | . . . . . . . . . Kinetic 382 | . . . 13 126 107 . 116 20 Thermal 56 | . 10 2 37 7 . . . . Explosive 2 | . . . 2 . . . . . Electromagnetic 53 | . . . . 36 . . 17 . Robot Hit Streak 13 | . 2 2 11 13 9 . 11 2 Robot Miss Streak 6 | . 2 . 2 4 5 . 3 6 Penetration Max 1 | . . . . . 1 . 1 . Secondary Targets 5 | . . . . 5 . . . . Max Gunslinging Chain 1 | . . . . 1 . . . . Shots Hit Robots 318 | . 5 2 38 108 66 . 90 9 Core Hits 142 | . 5 . 15 48 24 . 45 5 Critical Hits 9 | . . . . . 3 . 6 . Critical Kills 3 | . . . . . 1 . 2 . Critical Parts Destroyed 6 | . . . . . 2 . 4 . Melee Attacks . | . . . . . . . . . Impact . | . . . . . . . . . Slashing . | . . . . . . . . . Piercing . | . . . . . . . . . Sneak Attacks . | . . . . . . . . . Combat Hostiles . | . . . . . . . . . Follow-up Attacks . | . . . . . . . . . Damage Inflicted 5242 | . 89 31 580 1373 1138 . 1838 193 Guns 2512 | . 36 13 352 1335 403 . 180 193 Cannons 2514 | . 53 18 162 27 626 . 1628 . Explosions 169 | . . . 60 . 109 . . . Melee . | . . . . . . . . . Ramming 47 | . . . 6 11 . . 30 . Kinetic 4077 | . . . 139 956 1029 . 1760 193 Thermal 656 | . 89 31 375 52 109 . . . Explosive 60 | . . . 60 . . . . . Electromagnetic 402 | . . . . 354 . . 48 . Impact . | . . . . . . . . . Slashing . | . . . . . . . . . Piercing . | . . . . . . . . . Highest Corruption 8 | . . . . . 1 1 8 8 Average Corruption 2 | . . . . . 1 1 1 8 Corruption Purged . | . . . . . . . . . Effects 15 | . . . . . . 2 6 7 Message Errors 3 | . . . . . . 2 . 1 Heat Flow Errors 2 | . . . . . . . 1 1 Energy Discharges 3 | . . . . . . . 1 2 Data Loss (minor) 4 | . . . . . . . 3 1 Misfires 1 | . . . . . . . . 1 Targeting Errors 2 | . . . . . . . 1 1 Overload Shots . | . . . . . . . . . Overflow Damage 149 | . . . 19 . 67 . 63 . Projectiles 76 | . . . . . 13 . 63 . Explosions 73 | . . . 19 . 54 . . . Melee . | . . . . . . . . . Knockbacks 36 | . . . 1 1 8 . 26 . Impact 1 | . . . 1 . . . . . Kinetic 32 | . . . . 1 8 . 23 . Secondary 3 | . . . . . . . 3 . Self-Inflicted Damage 56 | . . . 42 . . . 14 . Shots 1 | . . . 1 . . . . . Rammed 7 | . . . 2 1 . . 4 . Targets Rammed 7 | . . . 2 1 . . 4 . Kicked . | . . . . . . . . . Crushed . | . . . . . . . . . Highest Temperature 638 | . 244 6 212 251 490 . 638 252 Average Temperature 151 | . 143 4 73 96 145 . 212 121 Received Heat Transfer 1533 | . 60 . 357 204 90 . 771 51 Effects 25 | . . . . . 5 . 20 . Shutdowns 5 | . . . . . 2 . 3 . Energy Bleed 2 | . . . . . 1 . 1 . Interference 4 | . . . . . 1 . 3 . Matter Decay 4 | . . . . . 1 . 3 . Damage (minor) 3 | . . . . . . . 3 . Damage (major) 6 | . . . . . . . 6 . Damage (core) 1 | . . . . . . . 1 . Siege Activations . | . . . . . . . . . Robots Corrupted 1 | . . . . 1 . . . . Combat Hostiles 1 | . . . . 1 . . . . Parts Fried 3 | . . . . 3 . . . . Impact Corruptions . | . . . . . . . . . Robots Melted . | . . . . . . . . . Combat Hostiles . | . . . . . . . . . Parts Melted 4 | . 1 . 3 . . . . . Heat Transferred 1459 | . 222 74 965 148 50 . . . Parts Sabotaged . | . . . . . . . . . Parts Stolen . | . . . . . . . . . Parts Stripped . | . . . . . . . . . Power Chain Reactions . | . . . . . . . . . Missiles Intercepted . | . . . . . . . . . Alert | -11 -10 -10 -9 -8 -7 -7 -7 -7 ------- Run | Scr Mat Min Mat Mat Fac Was Fac Low Peak Influence 316 | . 50 34 130 289 316 110 285 . Initial 130 | . . 19 13 18 130 110 77 . Average 116 | . 15 33 67 161 187 110 102 . Maximum Alert Level 1 | . . . . 1 1 . 1 . Low Security (%) 79 | 100 100 100 100 61 51 100 88 . Level 1 20 | . . . . 38 48 . 11 . Level 2 . | . . . . . . . . . Level 3 . | . . . . . . . . . Level 4 . | . . . . . . . . . Level 5 . | . . . . . . . . . High Security . | . . . . . . . . . Max Security . | . . . . . . . . . Squads Dispatched 5 | . . . . . 1 . 4 . Investigation 1 | . . . . . . . 1 . Extermination 2 | . . . . . 1 . 1 . Reinforcement . | . . . . . . . . . Assault . | . . . . . . . . . Garrison 2 | . . . . . . . 2 . Intercept . | . . . . . . . . . Construction Impeded . | . . . . . . . . . Haulers Reinforced . | . . . . . . . . . Stealth | -11 -10 -10 -9 -8 -7 -7 -7 -7 --------- Run | Scr Mat Min Mat Mat Fac Was Fac Low Distress Signals 5 | . . . 2 1 1 . 1 . Communications Jammed . | . . . . . . . . . Distress Signals . | . . . . . . . . . Times Spotted 91 | . 4 1 12 20 19 . 20 15 Peak Tracking Total 8 | . 3 1 6 4 5 . 4 8 Tactical Retreats 11 | . . . . 1 4 . 4 2 Traps | -11 -10 -10 -9 -8 -7 -7 -7 -7 ------- Run | Scr Mat Min Mat Mat Fac Was Fac Low Traps Triggered 1 | . . . . . 1 . . . Indirectly . | . . . . . . . . . Trap Hack Attempts . | . . . . . . . . . Triggered . | . . . . . . . . . Disarmed . | . . . . . . . . . Reprogrammed . | . . . . . . . . . Reused . | . . . . . . . . . Traps Extracted . | . . . . . . . . . Installed . | . . . . . . . . . Triggered . | . . . . . . . . . Machines | -11 -10 -10 -9 -8 -7 -7 -7 -7 ---------- Run | Scr Mat Min Mat Mat Fac Was Fac Low Machines Disabled 3 | . . . . . 2 . 1 . Max in Single Turn 1 | . . . . . 1 . 1 . Machines Sabotaged . | . . . . . . . . . Garrisons Compromised . | . . . . . . . . . Overloaded Fab Kills . | . . . . . . . . . Fab Network Shutdowns . | . . . . . . . . . Hacking | -11 -10 -10 -9 -8 -7 -7 -7 -7 --------- Run | Scr Mat Min Mat Mat Fac Was Fac Low Machines Accessed 3 | . 1 . . 1 . . 1 . Terminals 2 | . 1 . . 1 . . . . Fabricators . | . . . . . . . . . Repair Stations . | . . . . . . . . . Recycling Units 1 | . . . . . . . 1 . Scanalyzers . | . . . . . . . . . Garrison Access . | . . . . . . . . . Total Hacks 10 | . 2 . . 4 . . 4 . Successful 8 | . 2 . . 2 . . 4 . Failed 2 | . . . . 2 . . . . Catastrophic . | . . . . . . . . . Database Lockouts . | . . . . . . . . . Manual . | . . . . . . . . . Terminals 6 | . 2 . . 4 . . . . Fabricators . | . . . . . . . . . Repair Stations . | . . . . . . . . . Recycling Units 4 | . . . . . . . 4 . Scanalyzers . | . . . . . . . . . Garrison Access . | . . . . . . . . . Terminal Hacks 4 | . 2 . . 2 . . . . Locate Traps 1 | . . . . 1 . . . . Dispatch Records 1 | . 1 . . . . . . . Zone Layout 2 | . 1 . . 1 . . . . Fabricator Hacks . | . . . . . . . . . Repair Station Hacks . | . . . . . . . . . Recycling Unit Hacks 4 | . . . . . . . 4 . Process 1 | . . . . . . . 1 . Report Inventory 1 | . . . . . . . 1 . Retrieve Matter 2 | . . . . . . . 2 . Scanalyzer . | . . . . . . . . . Garrison Access Hacks . | . . . . . . . . . Unauthorized Hacks . | . . . . . . . . . Terminals . | . . . . . . . . . Fabricators . | . . . . . . . . . Repair Stations . | . . . . . . . . . Recycling Units . | . . . . . . . . . Scanalyzers . | . . . . . . . . . Garrison Access . | . . . . . . . . . Data Cores Recovered . | . . . . . . . . . Used . | . . . . . . . . . Hacking Detections 2 | . 1 . . . . . 1 . Full Trace Events 1 | . . . . . . . 1 . Feedback Events . | . . . . . . . . . Feedback Blocked . | . . . . . . . . . Robot Schematics Acquired . | . . . . . . . . . Robots Built . | . . . . . . . . . Matter . | . . . . . . . . . Time . | . . . . . . . . . Total Robot Build Rating . | . . . . . . . . . Part Schematics Acquired . | . . . . . . . . . Parts Built . | . . . . . . . . . Matter . | . . . . . . . . . Time . | . . . . . . . . . Total Part Build Rating . | . . . . . . . . . Parts Repaired . | . . . . . . . . . Time . | . . . . . . . . . Parts Recycled . | . . . . . . . . . Recycled Matter 191 | . . . . . . . 191 . Retrieved Matter 250 | . . . . . . . 250 . Retrieved Components . | . . . . . . . . . Parts Scanalyzed . | . . . . . . . . . Part Schematics Acquired . | . . . . . . . . . Parts Damaged . | . . . . . . . . . Bothacking | -11 -10 -10 -9 -8 -7 -7 -7 -7 ------------ Run | Scr Mat Min Mat Mat Fac Was Fac Low Used RIF Installer . | . . . . . . . . . Robots Hacked . | . . . . . . . . . Non-combat . | . . . . . . . . . Combat . | . . . . . . . . . Robot Hacks Applied . | . . . . . . . . . Relay Couplers Released . | . . . . . . . . . Robots Rewired . | . . . . . . . . . Allies Hacked . | . . . . . . . . . Hacks Repelled . | . . . . . . . . . Allies | -11 -10 -10 -9 -8 -7 -7 -7 -7 -------- Run | Scr Mat Min Mat Mat Fac Was Fac Low Total Allies . | . . . . . . . . . Largest Group . | . . . . . . . . . Highest-Rated Group . | . . . . . . . . . Highest-Rated Ally . | . . . . . . . . . Total Orders . | . . . . . . . . . Ally Attacks . | . . . . . . . . . Total Damage . | . . . . . . . . . Kills . | . . . . . . . . . Allies Corrupted . | . . . . . . . . . Allies Melted . | . . . . . . . . . Intel | -11 -10 -10 -9 -8 -7 -7 -7 -7 ------- Run | Scr Mat Min Mat Mat Fac Was Fac Low Robot Analysis Total . | . . . . . . . . . Derelict Logs Recovered 3 | . . 2 . . . . . 1 Drone Launches . | . . . . . . . . . Drone Recoveries . | . . . . . . . . . Exploration | -11 -10 -10 -9 -8 -7 -7 -7 -7 ------------- Run | Scr Mat Min Mat Mat Fac Was Fac Low Turns Passed 3673 | 52 174 271 446 599 793 294 845 199 Spaces Moved 2013 | 28 95 152 210 280 369 157 430 292 Core 258 | 1 . . 1 . . . 102 154 Treads 1218 | 27 95 152 95 30 369 157 293 . Legs . | . . . . . . . . . Wheels 123 | . . . . 123 . . . . Hover 293 | . . . 114 121 . . 35 23 Flight 121 | . . . . 6 . . . 115 Fastest Speed 40 | 50 160 160 56 52 160 186 48 40 Average Speed 135 | 156 160 160 130 98 182 186 143 52 Slowest Speed 330 | 160 160 160 250 330 186 186 240 120 Overloaded Moves . | . . . . . . . . . Propulsion Burnouts . | . . . . . . . . . Robots Hopped . | . . . . . . . . . Cave-ins Triggered . | . . . . . . . . . Exploration Rate (%) 28 | 3 19 38 22 26 13 82 12 44 Regions Visited 8 Branch Regions 2 Pre-discovered Areas . | . . . . . . . . . Known Exits Taken . | . . . . . . . . . Unknown Exits Taken 6 | 1 1 1 1 1 . . 1 . Scrap Searched . | . . . . . . . . . Spaces Dug . | . . . . . . . . . Terrain Destroyed 37 | . . . 8 1 21 . 7 . Melee . | . . . . . . . . . Projectile 16 | . . . . 1 8 . 7 . AOE 21 | . . . 8 . 13 . . . Terrain Rammed . | . . . . . . . . . Walls Destroyed . | . . . . . . . . . Machines Disabled . | . . . . . . . . . Actions | -11 -10 -10 -9 -8 -7 -7 -7 -7 --------- Run | Scr Mat Min Mat Mat Fac Was Fac Low Total 2624 | 33 106 179 336 493 438 160 554 325 Wait 148 | . . 22 30 46 10 . 30 10 Move 2007 | 27 94 151 209 279 369 156 430 292 Hop . | . . . . . . . . . Pick Up 49 | . 5 1 16 16 10 1 . . Fast Attach 37 | 6 1 . 7 15 2 . 4 2 Attach 34 | . . . 6 9 3 . 15 1 Detach 5 | . . . . 3 . . 1 1 Swap 36 | . 1 2 7 17 9 . . . Drop 61 | . . 2 18 32 5 1 3 . Fire 237 | . 5 1 41 75 30 . 66 19 Melee . | . . . . . . . . . Ram 5 | . . . 2 . . . 3 . Kick . | . . . . . . . . . Crush 1 | . . . . 1 . . . . Escape Stasis . | . . . . . . . . . Rewire 4 | . . . . . . 2 2 . Trap . | . . . . . . . . . Miscellaneous . | . . . . . . . . . Route ------- -11/Scrapyard -10/Materials -10/Mines -9/Materials (discovered 2 exits: *Mat / Min) -8/Materials -7/Factory -7/Waste -7/Factory -7/Lower Caves History --------- Turn | Location | Event 7 | -11/Scrapyard | Discovered new exit (range 15) 53 | -11/Scrapyard | Entered Materials 148 | -10/Materials | Discovered new exit (range 13) 227 | -10/Materials | Entered Mines 234 | -10/Mines | Joined a pair of Derelicts in attacking an 0b10 outpost 305 | -10/Mines | YI-UF0 nonchalantly dropped a Grenade Launcher on the ground 318 | -10/Mines | Build established: Mutant 411 | -10/Mines | Learned Materials terminal intel 452 | -10/Mines | Learned 2 Materials zone layouts 482 | -10/Mines | Discovered new exit (range 8) 498 | -10/Mines | Entered Materials 498 | -9/Materials | Evolved 2 slots: Utility x1, Weapon x1 499 | -9/Materials | Identified exit to Mines 500 | -9/Materials | Loaded intel: 12 terminal locations 653 | -9/Materials | Lost 3 parts (1u2w) 809 | -9/Materials | Lost 3 parts (1n2w) 896 | -9/Materials | Discovered new exit (range 13) 944 | -9/Materials | Entered another Materials area 944 | -8/Materials | Evolved 2 slots: Propulsion x1, Utility x1 1406 | -8/Materials | Discovered new exit (range 12) 1543 | -8/Materials | Entered Factory 1543 | -7/Factory | Evolved 2 slots: Utility x1, Weapon x1 1985 | -7/Factory | Build established: Hauler-Gunner 2336 | -7/Factory | Sucked down chute 2336 | -7/Factory | Entered Waste 2336 | -7/Waste | The area was eerily silent 2539 | -7/Waste | Build established: Hauler-Mutant 2606 | -7/Waste | Discovered new exit (range 13) 2630 | -7/Waste | Entered Factory 2999 | -7/Factory | Lost 3 parts (1n2u) 3279 | -7/Factory | Lost 9 parts (1p3n3u2w) 3347 | -7/Factory | Garrison activated, responded to threat 3395 | -7/Factory | Released all parts (8) 3399 | -7/Factory | Core integrity fell below 50% 3420 | -7/Factory | Lost 3 parts (1p1n1w) 3472 | -7/Factory | Discovered new exit (range 6) 3475 | -7/Factory | Entered Lower Caves 3514 | -7/Lower Caves | Core integrity fell below 20% 3547 | -7/Lower Caves | Lost 4 parts (1p3n) 3547 | -7/Lower Caves | Spotted B-75 Beast 3581 | -7/Lower Caves | Attracted the attention of an 0b10 checkpoint 3619 | -7/Lower Caves | Learned location of 1 exit from Factory 3651 | -7/Lower Caves | Attracted the attention of an 0b10 outpost 3674 | -7/Lower Caves | Destroyed by L-41 Fighter with Axe Last Messages --------------- Lgt. Nuclear Core fries itself beyond repair. VTOL Module fries itself beyond repair. Lgt. Nuclear Core fries itself beyond repair. Acquired 22 matter. Acquired 26 matter. System corrupted: Component data lost. Y-54 Guardian: "INTERCEPTING UNREGISTERED DERELICT." VTOL Module destroyed. Acquired 28 matter. System corrupted: Energy discharge (-25). Acquired 27 matter. System corrupted: Heat flow error (+286). Acquired derelict log, extracted data. Data stored: Factory exits (x1). TJ< SWE&WLNGL=WSZ7M:2|0N HP Y-64 Sentinel: "DETECTED UNIDENTIFIED DERELICT." Penetrated by Slug. Autogun destroyed. Y-64 Sentinel: "REQUESTING BACKUP." System corrupted: Energy discharge (-21). Map ----- +----------------------------------------------------+ | ???????????????????## # # # | | ????????????????????#### " "" # # | | ???????????????????????# """""" # # | | ???????????????????????# " " # | | ???????????????????????# | | ???????????????????????# """" "" | | ???????????????????????# ## """"" #### | | ??????????????????????## ### " ###??# | | ??????????????????????# # ##???# | | ??????????????????????# #????# | | ??????????????????????# #????# | | ??????????????????????## #????# | | ???????????????????????# ### ##??? | | ???????????????????????## ###### ####??? | | ????????????????????????#### ### ## ##????? | | ???????????????????????????## ## #????? ## | | ????????????????????????????# ## ##### ## | | ????????????????????????????## ## | | ?????????????????????#######?# ### ######## | | ?????????????????????#"""""#?# #?# #???? # | | ?????????????????????#"" ""#?# #?# #??? ?? | | ?????????????????????#"" ""#?# #?# #?? $?????? | | ??????????????????????#" "##### #?# ##/#??????? | | ?????????????????????##" "# #### #?# #??????? | | ????????????????????##"" "" ####### #??????? | | ???????????????????## g@ ## ###### | | ???????????????????# ggl bYb # | | ???????????????????# ########### #### | | ???????????????????####?????????# #### #????? | | ????????????????????????????????# ##??? #????? | | ??????????????????????????????? #????? #????? | | ?????????????????????????????? #????? #????? | | ????????????????????????????? ???????????? | | ???????????????????????????? #??????????? | | ??????????????????????????? ## ??????????? | | ??????????????????????????# #?## ?????????? | | ??????????????????????????# ????### #????????? | | ?????????????????????????? ## ??????? ????????? | | ????????????????????????? ?# ???????? ????????? | | ?????????????????????????? ??#????????? ????????? | | ?????????????????????????????????????????????????? | | ?????????????????????????????????????????????????? | | ?????????????????????????????????????????????????? | | ?????????????????????????????????????????????????? | | ?????????????????????????????????????????????????? | | ?????????????????????????????????????????????????? | | ?????????????????????????????????????????????????? | | ?????????????????????????????????????????????????? | | ?????????????????????????????????????????????????? | | ?????????????????????????????????????????????????? | +----------------------------------------------------+ Best States ------------- Heat Dissipation 48 Coolant Potential 65 Energy Generation 18 Energy Capacity 290 Matter Stores 300 Matter Capacity 300 Sight Range 16 Terrain Scan Density 10 Cloak Strength 2 Armor Coverage 150 Weapon Cycling 15 Evasion (%) 62 Targeting Accuracy 10 Recoil Reduction 6 Item Schematics ----------------- None Robot Schematics ------------------ None Fabricated ------------ Nothing Alien Tech Used ----------------- None Achievements -------------- None Challenges ------------ None Game ------ Seed LegCloakWand Manual? 0 Play Time 00:42:32 Cumulative 7.8 hours Start 2021.01.06 @ 05:14:29 End 2021.01.06 @ 05:54:32 Sessions 1 Manual Loads 0 Difficulty Rogue Special Mode None Game No. 24 Rogue 24 Adventurer 0 Explorer 0 Win Type - Total 0 Types 0/0/0/0/0/0/0/0/0 Lore% 13 Gallery% 19 Achievement% 15 Wizard Run 0 Options --------- ASCII 0 Keyboard 0 Movement Mouse Keybinds 0 Fullscreen 1 Font 18/TerminusBold Map View 76x50 Tactical HUD 0 Map Filters NONE Filters NONE Steam X RUN: 00cceca3-a2ec-4673-8952-ee67d34bf128